bitfinex/quotes_BTCUSD_20241024
["timestamp","ask_amount","ask_price","bid_price","bid_amount"]
[1729730567309,0.22469385,66747.0,66731.0,1.10766672]
[1729730567542,0.22469385,66747.0,66731.0,1.1523605]
[1729730567779,0.22469385,66747.0,66731.0,1.15236045]
[1729730568011,0.22469385,66747.0,66731.0,1.10766672]
[1729730568243,0.22469385,66747.0,66731.0,1.10966672]
[1729730568954,0.22469385,66747.0,66731.0,1.10766672]
[1729730569213,0.22469385,66747.0,66731.0,1.15235927]
[1729730569446,0.22469385,66746.0,66731.0,1.33436057]
[1729730569666,0.22469385,66746.0,66731.0,1.10966672]
[1729730569880,0.22469385,66745.0,66735.0,0.68919222]
[1729730570095,0.22469385,66745.0,66735.0,0.8518793]
[1729730570322,0.22469385,66745.0,66735.0,1.31511531]
[1729730570970,0.22469385,66745.0,66735.0,1.31711531]
[1729730571185,0.22469385,66745.0,66735.0,1.38415119]
[1729730572306,0.001698,66753.0,66735.0,1.32711531]
[1729730572533,0.001698,66753.0,66735.0,1.32511531]
[1729730572749,0.22469385,66751.0,66735.0,1.39215479]
[1729730573402,0.22469385,66751.0,66735.0,1.37997152]
[1729730573618,0.22469385,66751.0,66735.0,1.39215361]
[1729730573874,0.22469385,66751.0,66735.0,1.32511413]
[1729730574340,0.22469385,66751.0,66735.0,1.39215361]
[1729730574999,0.22469385,66751.0,66735.0,1.32511413]
[1729730575483,0.22469385,66751.0,66735.0,1.41649531]
[1729730575944,0.22469385,66751.0,66735.0,1.32711413]
[1729730576165,0.22469385,66751.0,66735.0,1.41652704]
[1729730576408,0.22469385,66751.0,66735.0,1.32711413]
[1729730576631,0.22469385,66751.0,66735.0,1.41653414]
[1729730576860,0.22469385,66751.0,66735.0,1.41653277]
[1729730577057,0.22469385,66751.0,66735.0,1.41653278]
[1729730577280,0.22469385,66751.0,66735.0,1.32711413]
[1729730577509,0.22469385,66751.0,66735.0,1.40435069]
[1729730577770,0.22469385,66751.0,66735.0,1.40903613]
[1729730578231,0.22469385,66751.0,66735.0,1.41653283]
[1729730579384,0.013324,66736.0,66735.0,1.32711418]
[1729730579810,0.013324,66736.0,66735.0,1.32511418]
[1729730580026,0.013324,66736.0,66735.0,1.41456703]
[1729730580471,0.013324,66736.0,66735.0,1.32511418]
[1729730580694,0.013324,66736.0,66735.0,1.21439107]
[1729730581118,0.013324,66736.0,66735.0,1.32511418]
[1729730581330,0.013324,66736.0,66735.0,1.43694086]
[1729730581543,0.013324,66736.0,66735.0,1.32621775]
[1729730582224,0.013324,66736.0,66735.0,1.21439107]
[1729730582465,0.013324,66736.0,66735.0,1.32621775]
[1729730583813,0.013324,66736.0,66735.0,1.21439107]
[1729730584025,0.013324,66736.0,66735.0,1.326271]
[1729730584242,0.013324,66736.0,66735.0,1.21439107]
[1729730584463,0.013324,66736.0,66735.0,1.32511421]
[1729730584677,0.013324,66736.0,66735.0,1.2143911]
[1729730587098,0.013324,66736.0,66735.0,1.32511421]
[1729730588245,0.013324,66736.0,66735.0,1.31293204]
[1729730588474,0.013324,66736.0,66735.0,1.35515424]
[1729730588702,0.013324,66736.0,66735.0,1.322303]
[1729730588925,0.013324,66736.0,66735.0,1.32511434]
[1729730589189,0.013324,66736.0,66735.0,1.45930636]
[1729730589412,0.013324,66736.0,66735.0,1.32511434]
[1729730592126,0.013324,66736.0,66735.0,1.32511413]
[1729730593342,0.013324,66736.0,66735.0,1.21439102]
[1729730594944,0.013324,66736.0,66735.0,1.10366791]
[1729730595181,0.013324,66736.0,66735.0,1.21439102]
[1729730599421,0.013324,66736.0,66735.0,1.21439171]
[1729730600830,0.013324,66736.0,66735.0,1.34894714]
[1729730601067,0.22629385,66751.0,66749.0,0.164814]
[1729730601281,0.22629385,66751.0,66749.0,0.17699678]
[1729730601499,0.0016,66751.0,66749.0,0.64207225]
[1729730606576,0.0016,66751.0,66749.0,0.63738657]
[1729730606806,0.0016,66751.0,66749.0,0.64956975]
[1729730607035,0.0016,66751.0,66749.0,0.65425553]
[1729730608805,0.001698,66753.0,66749.0,0.65425553]
[1729730610407,0.001698,66753.0,66749.0,0.6420725]
[1729730610878,0.001698,66753.0,66749.0,0.65425553]
[1729730613902,0.031698,66753.0,66749.0,0.65425553]
[1729730614840,0.001698,66753.0,66749.0,0.65425553]
[1729730616724,0.001698,66753.0,66749.0,0.48944153]
[1729730616725,0.18151,66750.0,66749.0,0.48944153]
[1729730617798,0.18151,66750.0,66749.0,0.4772585]
[1729730618677,0.18151,66750.0,66749.0,0.48194471]
[1729730620164,0.18151,66750.0,66749.0,0.4772585]
[1729730620368,0.18151,66750.0,66749.0,0.46507547]
[1729730621017,0.18151,66750.0,66749.0,0.4697616]
[1729730621501,0.031698,66750.0,66749.0,0.4697616]
[1729730621983,0.031698,66750.0,66749.0,0.46976161]
[1729730622216,0.18151,66750.0,66749.0,0.46976161]
[1729730622450,0.031698,66750.0,66749.0,0.46976161]
[1729730622994,0.18151,66750.0,66749.0,0.46976161]
[1729730623854,0.18151,66750.0,66749.0,0.45412614]
[1729730624064,0.18151,66750.0,66749.0,0.46965008]
[1729730625551,0.18151,66750.0,66749.0,0.46965005]
[1729730625972,0.18151,66750.0,66749.0,0.46496394]
[1729730626180,0.18151,66750.0,66749.0,0.46965005]
[1729730627055,0.29223311,66750.0,66749.0,0.46965005]
[1729730627272,0.29383311,66750.0,66749.0,0.46496394]
[1729730627547,0.18311,66750.0,66749.0,0.46496394]
[1729730627746,0.29383311,66750.0,66749.0,0.46496394]
[1729730627974,0.29383311,66750.0,66749.0,0.44944]
[1729730627975,0.33877212,66750.0,66749.0,0.44944]
[1729730628188,0.29383311,66750.0,66749.0,0.46496491]
[1729730631042,0.031698,66750.0,66749.0,0.63996491]
[1729730631264,0.031698,66750.0,66749.0,0.64465096]
[1729730632147,0.031698,66750.0,66749.0,0.79946496]
[1729730632600,0.031698,66750.0,66749.0,0.91018807]
[1729730632846,0.031698,66750.0,66749.0,0.79946496]
[1729730634194,0.001698,66750.0,66749.0,0.79946496]
[1729730635735,0.001698,66750.0,66749.0,0.91018807]
[1729730636619,0.001698,66750.0,66749.0,0.90550202]
[1729730636848,0.001698,66750.0,66749.0,0.79946491]
[1729730637997,0.001698,66750.0,66749.0,0.91018802]
[1729730639343,0.001698,66750.0,66749.0,0.91768544]
[1729730640911,0.001698,66750.0,66749.0,0.80696233]
[1729730643328,0.001698,66750.0,66749.0,0.65714833]
[1729730643549,0.001698,66750.0,66749.0,0.80696233]
[1729730645166,0.031698,66750.0,66749.0,0.80696233]
[1729730646067,0.031698,66750.0,66749.0,0.63996491]
[1729730646295,0.031698,66750.0,66749.0,0.65214802]
[1729730647776,0.031698,66750.0,66749.0,0.64465072]
[1729730649283,0.031698,66750.0,66749.0,0.63996491]
[1729730649500,0.031698,66750.0,66749.0,0.65214823]
[1729730649933,0.031698,66750.0,66749.0,0.64465081]
[1729730650363,0.001698,66750.0,66749.0,0.64465081]
[1729730650574,0.001698,66750.0,66749.0,0.80196223]
[1729730650813,0.001698,66750.0,66749.0,0.65214823]
[1729730651023,0.001698,66750.0,66749.0,0.64465081]
[1729730651880,0.001698,66750.0,66749.0,0.65214817]
[1729730652078,0.001698,66750.0,66749.0,0.64465081]
[1729730652709,0.001698,66750.0,66749.0,0.63996491]
[1729730652917,0.001698,66750.0,66749.0,0.65214817]
[1729730653146,0.001698,66750.0,66749.0,0.64465078]
[1729730653671,0.001698,66750.0,66749.0,0.79446478]
[1729730653889,0.001698,66750.0,66749.0,0.80196216]
[1729730656263,0.001698,66750.0,66749.0,0.80196192]
[1729730662569,0.001698,66750.0,66749.0,0.80696192]
[1729730663427,0.001698,66750.0,66749.0,0.80696144]
[1729730667206,0.001698,66750.0,66749.0,0.80696147]
[1729730667854,0.001698,66750.0,66749.0,0.8069614]
[1729730668314,0.001698,66750.0,66749.0,0.95746521]
[1729730670324,0.001698,66750.0,66749.0,0.94528272]
[1729730670544,0.001698,66750.0,66749.0,0.95746461]
[1729730671878,0.001698,66750.0,66749.0,0.96246461]
[1729730672327,0.001698,66750.0,66749.0,0.98546461]
[1729730672786,0.001698,66750.0,66749.0,0.98046461]
[1729730676275,0.001698,66750.0,66749.0,1.09118772]
[1729730677680,0.001698,66750.0,66749.0,1.09118777]
[1729730680275,0.001698,66750.0,66749.0,0.98046466]
[1729730680539,0.001698,66750.0,66749.0,1.09118777]
[1729730681018,0.001698,66750.0,66749.0,1.09118762]
[1729730682398,0.001698,66750.0,66749.0,1.07900583]
[1729730689289,0.001698,66750.0,66749.0,1.09118758]
[1729730691720,0.001698,66750.0,66749.0,1.10118758]
[1729730693352,0.001698,66750.0,66749.0,1.10118756]
[1729730696449,0.001698,66750.0,66749.0,1.14789208]
[1729730696872,0.001698,66750.0,66749.0,1.1031074]
[1729730697113,0.001698,66750.0,66749.0,1.10118756]
[1729730698190,0.001698,66750.0,66749.0,1.1478944]
[1729730698638,0.001698,66750.0,66749.0,1.27158677]
[1729730699097,0.001698,66750.0,66749.0,1.38355427]
[1729730699333,0.001698,66750.0,66749.0,1.38349837]
[1729730699563,0.001698,66750.0,66749.0,1.21691067]
[1729730700036,0.001698,66750.0,66749.0,1.32882956]
[1729730700296,0.001698,66750.0,66749.0,1.20941354]
[1729730700536,0.001698,66750.0,66749.0,1.37158501]
[1729730700785,0.001698,66750.0,66749.0,1.31690891]
[1729730702505,0.001698,66753.0,66750.0,0.1]
[1729730702799,0.001698,66753.0,66752.0,0.74795803]
[1729730703062,0.001698,66753.0,66752.0,0.84495803]
[1729730703324,0.001698,66753.0,66752.0,1.30843045]
[1729730703564,0.001698,66753.0,66752.0,1.32108561]
[1729730704098,9e-05,66762.0,66761.0,0.59443422]
[1729730704327,9e-05,66762.0,66761.0,0.75899045]
[1729730704545,9e-05,66762.0,66761.0,0.77351392]
[1729730704778,9e-05,66762.0,66761.0,1.22287392]
[1729730705238,9e-05,66762.0,66761.0,1.22095801]
[1729730705947,9e-05,66762.0,66761.0,1.32095801]
[1729730706403,9e-05,66762.0,66761.0,1.31350565]
[1729730706405,9e-05,66762.0,66761.0,1.13676669]
[1729730706632,9e-05,66762.0,66761.0,1.31158974]
[1729730707776,0.02494,66776.0,66775.0,0.44567911]
[1729730708038,0.02494,66776.0,66775.0,0.45036326]
[1729730708274,0.02494,66776.0,66775.0,0.89963326]
[1729730708511,0.02494,66776.0,66775.0,0.91224082]
[1729730710869,0.02494,66776.0,66775.0,1.06274463]
[1729730712945,0.02494,66776.0,66775.0,1.08574463]
[1729730713195,0.02494,66776.0,66775.0,1.08574424]
[1729730713944,0.02494,66776.0,66775.0,1.09574424]
[1729730714586,0.02494,66776.0,66775.0,1.10074424]
[1729730715011,0.02494,66776.0,66775.0,1.07774424]
[1729730715882,0.02494,66776.0,66775.0,1.18846735]
[1729730716057,0.02494,66776.0,66775.0,1.07774424]
[1729730716468,0.02494,66776.0,66775.0,1.18846735]
[1729730717380,0.02494,66776.0,66775.0,1.21146735]
[1729730720467,0.025764,66776.0,66775.0,1.21146735]
[1729730723334,0.025764,66776.0,66775.0,1.21146646]
[1729730725642,0.025764,66776.0,66775.0,1.31146646]
[1729730725877,0.025764,66776.0,66775.0,1.3133779]
[1729730726934,0.025764,66776.0,66775.0,1.30678359]
[1729730727158,0.025764,66776.0,66775.0,1.3133793]
[1729730727384,0.025764,66776.0,66775.0,1.31146636]
[1729730728001,0.025764,66776.0,66775.0,1.30678359]
[1729730728235,0.025764,66776.0,66775.0,1.31337987]
[1729730728449,0.025764,66776.0,66775.0,1.31146649]
[1729730728865,0.025764,66776.0,66775.0,1.31337726]
[1729730729328,0.025764,66776.0,66775.0,1.31146649]
[1729730729536,0.025764,66776.0,66775.0,1.09002027]
[1729730729746,0.025764,66776.0,66775.0,1.31146649]
[1729730730602,0.025764,66776.0,66775.0,1.20074338]
[1729730731035,0.025764,66776.0,66775.0,1.20074341]
[1729730731671,0.025764,66776.0,66775.0,1.20527618]
[1729730732839,0.025764,66776.0,66775.0,1.31599929]
[1729730737591,0.025764,66776.0,66775.0,1.3159992]
[1729730741833,0.025764,66776.0,66775.0,1.43672231]
[1729730742052,0.22469385,66792.0,66791.0,0.005]
[1729730742281,0.22469385,66792.0,66791.0,0.73867003]
[1729730742495,0.000848,66799.0,66798.0,0.179705]
[1729730742716,0.000848,66799.0,66798.0,0.44561476]
[1729730742935,0.000848,66799.0,66798.0,0.89473476]
[1729730743190,0.030848,66799.0,66798.0,1.01050908]
[1729730744534,0.030848,66799.0,66798.0,1.00582624]
[1729730744765,0.030848,66799.0,66798.0,1.01050842]
[1729730745267,0.030848,66799.0,66798.0,1.00582624]
[1729730746004,0.030848,66799.0,66798.0,1.08640842]
[1729730748493,0.030848,66799.0,66798.0,1.08640838]
[1729730751935,0.030848,66799.0,66798.0,1.08172624]
[1729730752212,0.030848,66799.0,66798.0,0.97568522]
[1729730755437,0.030848,66799.0,66798.0,0.97568531]
[1729730756383,0.030848,66799.0,66798.0,0.80368531]
[1729730759315,0.030848,66799.0,66798.0,0.80368528]
[1729730761755,0.030848,66799.0,66798.0,0.80368527]
[1729730763165,0.030848,66799.0,66798.0,0.8111767]
[1729730764989,0.030848,66799.0,66798.0,1.21327055]
[1729730765251,0.030848,66799.0,66798.0,1.33257209]
[1729730765479,0.030848,66799.0,66798.0,1.26921819]
[1729730765700,0.030848,66799.0,66798.0,1.29455039]
[1729730765920,0.030848,66799.0,66798.0,1.29923151]
[1729730766365,0.000848,66803.0,66802.0,0.72154222]
[1729730766584,0.000848,66803.0,66802.0,0.95113168]
[1729730766813,0.000848,66803.0,66802.0,1.35227619]
[1729730767024,0.000848,66803.0,66802.0,1.4394955]
[1729730767243,0.000848,66803.0,66802.0,1.39936814]
[1729730767682,0.000848,66803.0,66802.0,1.45602935]
[1729730767905,0.000848,66803.0,66802.0,1.45802935]
[1729730768133,0.000848,66817.0,66810.0,0.49800111]
[1729730768360,0.000848,66817.0,66810.0,0.66067609]
[1729730768570,0.000848,66817.0,66810.0,1.12667508]
[1729730769042,0.000848,66817.0,66810.0,1.11450391]
[1729730769259,0.000848,66817.0,66810.0,1.12667236]
[1729730770373,0.000848,66817.0,66810.0,1.1311263]
[1729730771962,0.000848,66817.0,66810.0,1.24184941]
[1729730772653,0.000848,66817.0,66810.0,1.22968096]
[1729730772874,0.000848,66817.0,66810.0,1.2418497]
[1729730773330,0.000848,66817.0,66810.0,1.13112659]
[1729730776776,0.000848,66817.0,66810.0,1.32968096]
[1729730777012,0.000848,66817.0,66810.0,1.3418495]
[1729730778111,0.000848,66817.0,66810.0,1.35120916]
[1729730779955,0.000848,66817.0,66810.0,1.32968096]
[1729730780166,0.000848,66817.0,66810.0,1.35120891]
[1729730780389,0.000848,66817.0,66810.0,1.35320891]
[1729730780625,0.000848,66817.0,66816.0,0.176664]
[1729730780858,0.22469385,66832.0,66819.0,0.65482733]
[1729730781077,0.22469385,66832.0,66819.0,0.99645909]
[1729730781307,0.22469385,66832.0,66819.0,1.44542909]
[1729730781524,0.22469385,66832.0,66819.0,1.3515307]
[1729730781800,0.22469385,66832.0,66819.0,1.46425381]
[1729730781986,0.01,66834.0,66819.0,1.46425381]
[1729730782220,0.01,66834.0,66819.0,1.3485307]
[1729730782447,0.01,66834.0,66819.0,1.3535307]
[1729730782669,0.01,66834.0,66819.0,1.46425381]
[1729730783372,0.01,66834.0,66819.0,1.3535307]
[1729730783608,0.01,66834.0,66819.0,1.3515307]
[1729730784294,0.01,66834.0,66819.0,1.35598586]
[1729730784965,0.01,66834.0,66819.0,1.11153964]
[1729730785208,0.01,66834.0,66819.0,1.32362588]
[1729730785418,0.01,66834.0,66819.0,1.33298586]
[1729730787655,0.01,66834.0,66819.0,1.31145791]
[1729730787875,0.01,66834.0,66819.0,1.33298432]
[1729730788113,0.01,66834.0,66819.0,1.33298439]
[1729730788989,0.01,66834.0,66819.0,1.32798439]
[1729730789216,0.01,66834.0,66819.0,1.33298439]
[1729730790895,0.01,66834.0,66819.0,1.32798439]
[1729730791113,0.01,66834.0,66819.0,1.33298439]
[1729730792460,2.000824,66820.0,66819.0,1.33298439]
[1729730793130,2.000824,66820.0,66819.0,1.32798439]
[1729730795321,2.000824,66820.0,66819.0,1.30645791]
[1729730795540,2.000824,66820.0,66819.0,1.32798501]
[1729730798899,2.000824,66820.0,66819.0,1.32798519]
[1729730799115,2.000824,66820.0,66819.0,1.30645791]
[1729730799329,2.000824,66820.0,66819.0,1.32798501]
[1729730801573,2.000824,66820.0,66819.0,1.35098501]
[1729730801781,2.000824,66820.0,66819.0,1.46170812]
[1729730802176,2.000824,66820.0,66819.0,1.35098501]
[1729730803076,2.000824,66820.0,66819.0,1.12953879]
[1729730803293,2.000824,66820.0,66819.0,1.10653879]
[1729730803517,2.000824,66820.0,66819.0,1.33913392]
[1729730806204,2.000824,66820.0,66819.0,1.33913396]
[1729730809654,2.000824,66820.0,66819.0,1.36209826]
[1729730809910,2.000824,66820.0,66819.0,1.3695859]
[1729730810138,2.000824,66820.0,66819.0,1.33913369]
[1729730810375,2.000824,66820.0,66819.0,1.42786153]
[1729730811464,2.000824,66820.0,66819.0,1.4500435]
[1729730812327,2.000824,66820.0,66819.0,1.33913369]
[1729730814990,2.000824,66820.0,66819.0,1.36213369]
[1729730815247,1.40440244,66820.0,66819.0,1.73755065]
[1729730815468,1.33053262,66820.0,66819.0,1.5148568]
[1729730815684,1.15062911,66820.0,66819.0,1.5148568]
[1729730816339,0.01,66834.0,66819.0,1.5148568]
[1729730816592,0.04460115,66867.0,66819.0,1.5148568]
[1729730816593,0.22469385,66871.0,66849.0,0.01]
[1729730816810,0.32317782,66898.0,66897.0,0.159483]
[1729730817061,0.30502627,66898.0,66897.0,0.352483]
[1729730817288,1.0174633,66910.0,66909.0,0.047]
[1729730817544,0.71418089,66910.0,66909.0,0.43113272]
[1729730817760,0.25288957,66910.0,66909.0,0.90734377]
[1729730817980,0.17675957,66910.0,66909.0,1.09185452]
[1729730818206,5.242e-05,66948.0,66909.0,4.20556285]
[1729730818426,5.242e-05,66948.0,66919.0,0.304434]
[1729730818427,1.93449633,66920.0,66919.0,0.304434]
[1729730818662,1.8630034,66920.0,66919.0,0.31191676]
[1729730818888,1.8630034,66920.0,66919.0,0.95784529]
[1729730819113,1.8630034,66920.0,66919.0,0.99682446]
[1729730819114,1.8340034,66920.0,66919.0,0.99682446]
[1729730819348,1.8340034,66920.0,66919.0,0.95284529]
[1729730819562,1.8340034,66920.0,66919.0,0.94784529]
[1729730819995,1.8340034,66920.0,66919.0,1.11213027]
[1729730820216,1.8340034,66920.0,66919.0,1.15505007]
[1729730820455,1.33939843,66920.0,66919.0,1.51104434]
[1729730820670,1.30951243,66920.0,66919.0,1.34159988]
[1729730820894,1.22288771,66920.0,66919.0,1.31143188]
[1729730821116,1.22288771,66920.0,66919.0,1.48287634]
[1729730821117,0.70737473,66920.0,66919.0,1.48287634]
[1729730821382,0.0174633,66976.0,66919.0,1.48287634]
[1729730821383,0.5,67018.0,66928.0,0.227414]
[1729730821610,0.5,67018.0,66920.0,0.1771]
[1729730821611,0.17144446,67001.0,66982.0,0.03]
[1729730821835,0.17144446,66998.0,66987.0,0.03]
[1729730822061,5.24e-05,67022.0,66987.0,0.03]
[1729730822062,0.17144446,66988.0,66987.0,0.03]
[1729730822282,0.149272,66992.0,66989.0,0.03]
[1729730822505,0.17144446,66992.0,66989.0,0.03]
[1729730822727,0.17144446,66992.0,66991.0,0.03]
[1729730823395,0.00213885,66995.0,66991.0,0.67089116]
[1729730823838,0.17358331,66995.0,66991.0,0.67089116]
[1729730824282,0.17358331,66995.0,66991.0,0.64926]
[1729730824493,0.17358331,66995.0,66993.0,0.253909]
[1729730824709,0.17358331,66995.0,66993.0,0.03]
[1729730824944,0.00213885,66995.0,66994.0,0.64924]
[1729730825219,0.149201,67024.0,66998.0,0.03]
[1729730825442,0.149201,67024.0,66994.0,0.79604394]
[1729730825443,0.223909,67006.0,67005.0,0.03]
[1729730825668,0.223909,67020.0,67005.0,0.03]
[1729730825894,0.149234,67009.0,67006.0,0.03]
[1729730826118,0.49212692,67007.0,67006.0,0.04773412]
[1729730826353,0.32068246,67007.0,67005.0,0.23279365]
[1729730826579,0.149253,67001.0,66990.0,0.223909]
[1729730826787,0.07905869,67007.0,67000.0,0.223909]
[1729730827023,0.249247,67003.0,67002.0,0.03]
[1729730827267,0.1,67002.0,67001.0,0.0147771]
[1729730827498,0.1,67002.0,66991.0,0.44779]
[1729730827499,0.1,66998.0,66991.0,0.38919248]
[1729730827754,0.77098323,67002.0,66962.0,0.228909]
[1729730827755,0.24928,66988.0,66987.0,0.223909]
[1729730827985,0.27228,66988.0,66987.0,0.149009]
[1729730828223,0.27228,66988.0,66987.0,0.47784]
[1729730828463,0.94326323,66988.0,66987.0,0.47784]
[1729730828684,0.945503,66988.0,66987.0,0.06146365]
[1729730829145,0.1,66987.0,66962.0,0.223909]
[1729730829368,0.26023971,66977.0,66962.0,0.223909]
[1729730829625,0.023,66977.0,66962.0,0.223909]
[1729730829903,0.023,66977.0,66976.0,0.4388041]
[1729730829904,0.68304752,66977.0,66976.0,0.4388041]
[1729730830159,0.1,66966.0,66962.0,0.223909]
[1729730830382,0.54347942,66963.0,66962.0,0.223909]
[1729730830601,0.26023971,66963.0,66962.0,0.223909]
[1729730830822,0.26023971,66963.0,66962.0,0.44801]
[1729730831045,0.298589,66982.0,66962.0,0.44801]
[1729730831046,0.223909,66993.0,66969.0,0.005]
[1729730831277,0.223909,66974.0,66971.0,0.005]
[1729730831495,0.223909,66993.0,66972.0,0.15050381]
[1729730831733,0.223909,66984.0,66972.0,0.59845381]
[1729730831989,0.223909,66992.0,66977.0,0.223909]
[1729730832248,0.223909,66992.0,66974.0,0.005]
[1729730832465,0.223909,66992.0,66978.0,0.44791]
[1729730832693,0.26023971,66998.0,66979.0,0.37441281]
[1729730832890,0.26023971,66998.0,66979.0,0.15050381]
[1729730833147,0.40949771,66998.0,66980.0,0.44789]
[1729730833381,0.223909,67000.0,66982.0,0.154291]
[1729730833595,0.223909,67000.0,66984.0,0.149288]
[1729730833812,0.223909,67000.0,66984.0,0.15050381]
[1729730833813,0.149256,66999.0,66984.0,0.15050381]
[1729730834024,0.26023971,66989.0,66983.0,0.44787]
[1729730834247,0.26023971,66989.0,66985.0,0.45774471]
[1729730834476,0.00223931,66997.0,66985.0,0.45774471]
[1729730834477,0.149277,66990.0,66985.0,0.44786]
[1729730834701,0.149273,66991.0,66986.0,0.00986386]
[1729730834931,0.149279,66989.0,66986.0,0.00986386]
[1729730835183,0.29853,66995.0,66987.0,0.44785]
[1729730835459,0.149272,66992.0,66988.0,0.00986318]
[1729730835671,0.00223931,66997.0,66988.0,0.00986318]
[1729730835880,0.149275,66991.0,66989.0,0.44783]
[1729730836097,0.00223931,66997.0,66989.0,0.44783]
[1729730836528,0.149267,66994.0,66989.0,0.44783]
[1729730836748,0.00223931,66997.0,66990.0,0.223909]
[1729730836749,0.149261,66997.0,66990.0,0.223909]
[1729730836968,0.149258,66999.0,66990.0,0.15050381]
[1729730837189,0.1,67001.0,66991.0,0.45768318]
[1729730837411,0.149271,66992.0,66991.0,0.45768318]
[1729730837847,0.149271,66992.0,66991.0,0.44782]
[1729730838307,0.149271,66992.0,66991.0,0.45768318]
[1729730838533,0.40951071,66992.0,66991.0,0.45768318]
[1729730838762,0.298516,66998.0,66991.0,0.45768318]
[1729730838979,0.149271,66992.0,66991.0,0.45768318]
[1729730839649,0.149268,66994.0,66991.0,0.44782]
[1729730839870,0.149271,66992.0,66991.0,0.44782]
[1729730840820,0.149242,67006.0,66995.0,0.005]
[1729730841048,0.223909,67005.0,66996.0,0.1551733]
[1729730841269,0.522351,67015.0,67000.0,0.005]
[1729730841270,0.298477,67007.0,67000.0,0.005]
[1729730841498,0.149235,67009.0,67001.0,0.1551733]
[1729730841717,0.29843,67018.0,67001.0,0.1551733]
[1729730841718,0.298465,67010.0,67002.0,0.00466949]
[1729730841934,0.298458,67011.0,67003.0,0.3790823]
[1729730842145,0.149242,67006.0,67004.0,0.00466949]
[1729730842394,0.00223845,67027.0,67003.0,0.59824381]
[1729730842645,0.298446,67014.0,67005.0,0.44773]
[1729730842895,0.298462,67010.0,67006.0,0.00466833]
[1729730843131,0.298462,67010.0,67005.0,0.44773]
[1729730843132,0.14924,67006.0,67005.0,0.44773]
[1729730843354,0.298467,67009.0,66992.0,0.228909]
[1729730843355,0.172235,67008.0,67007.0,0.03823029]
[1729730843581,0.249235,67008.0,67007.0,0.03823029]
[1729730844264,0.249235,67008.0,67007.0,0.04289925]
[1729730845204,0.25147402,67008.0,67007.0,0.05036961]
[1729730845935,0.29848,67006.0,66984.0,0.223909]
[1729730846204,0.149287,66985.0,66984.0,0.223909]
[1729730846717,0.149287,66985.0,66976.0,0.001644]
[1729730846718,0.149302,66978.0,66976.0,0.001644]
[1729730847220,0.149318,66971.0,66970.0,0.223909]
[1729730847686,0.298631,66973.0,66967.0,0.0018558]
[1729730847909,0.149325,66968.0,66967.0,0.0018558]
[1729730848424,0.00223947,66975.0,66967.0,0.0018558]
[1729730848425,0.223909,66980.0,66968.0,0.298635]
[1729730848670,0.223909,66980.0,66968.0,0.44913881]
[1729730848671,0.149322,66969.0,66968.0,0.44913881]
[1729730849175,0.149322,66969.0,66968.0,0.298635]
[1729730849442,0.149322,66969.0,66968.0,0.3005237]
[1729730849914,0.149322,66969.0,66968.0,0.298635]
[1729730850381,0.149321,66970.0,66968.0,0.44913881]
[1729730850676,0.26023971,66992.0,66970.0,0.005]
[1729730850677,0.149315,66973.0,66970.0,0.005]
[1729730850944,0.149293,66983.0,66976.0,0.005]
[1729730851202,0.223909,66986.0,66978.0,0.005]
[1729730851443,0.1493,66979.0,66978.0,0.005]
[1729730851670,0.298596,66981.0,66979.0,0.44792]
[1729730851916,0.149298,66980.0,66979.0,0.45497726]
[1729730852137,0.149298,66980.0,66979.0,0.44792]
[1729730852368,0.149298,66980.0,66979.0,0.59842381]
[1729730852652,0.522437,66996.0,66989.0,0.005]
[1729730852653,0.298528,66996.0,66989.0,0.005]
[1729730852877,0.26106071,67012.0,66986.0,0.005]
[1729730852878,0.223909,66995.0,66986.0,0.005]
[1729730853099,0.149267,66994.0,66993.0,0.00185207]
[1729730853350,0.149267,66994.0,66990.0,0.74646]
[1729730853351,0.149273,66991.0,66990.0,0.74646]
[1729730856163,0.149273,66991.0,66990.0,0.75393158]
[1729730857185,0.42277681,66991.0,66990.0,0.75393158]
[1729730857409,0.249273,66991.0,66990.0,0.75393158]
[1729730857656,0.149273,66991.0,66990.0,0.75393158]
[1729730858166,0.149273,66991.0,66990.0,0.75860147]
[1729730858652,0.30201614,66991.0,66990.0,0.75860147]
[1729730858899,0.32501614,66991.0,66990.0,0.75112989]
[1729730859128,0.15151233,66991.0,66990.0,0.75112989]
[1729730860346,0.15151233,66991.0,66990.0,0.75860213]
[1729730860847,0.15151233,66991.0,66990.0,0.75860215]
[1729730862926,0.299358,66994.0,66990.0,0.75860215]
[1729730863151,0.149271,66992.0,66991.0,0.08744104]
[1729730863599,0.15151019,66992.0,66991.0,0.83388104]
[1729730863849,0.149269,66993.0,66991.0,0.83388104]
[1729730864076,0.000822,66994.0,66993.0,0.005]
[1729730864306,0.000822,66994.0,66993.0,0.32691385]
[1729730864570,0.000822,66994.0,66993.0,1.07335385]
[1729730864999,0.000822,66994.0,66993.0,1.07535385]
[1729730865432,0.000822,66994.0,66993.0,1.11671294]
[1729730865650,0.000822,66994.0,66993.0,1.06868422]
[1729730865915,0.000822,66994.0,66993.0,1.06321281]
[1729730866590,0.000822,66994.0,66993.0,1.07535074]
[1729730867037,0.000822,66994.0,66993.0,1.08212125]
[1729730868192,0.0022382,67013.0,67005.0,0.005]
[1729730868193,0.298453,67013.0,67005.0,0.005]
[1729730868427,0.223909,67022.0,67005.0,0.005]
[1729730868428,0.223909,67028.0,67023.0,0.002]
[1729730868646,0.223909,67028.0,67022.0,0.1748]
[1729730868647,0.149195,67026.0,67025.0,0.005]
[1729730868891,0.223909,67028.0,67024.0,0.75296854]
[1729730869100,0.223909,67028.0,67016.0,0.002]
[1729730869101,0.149195,67026.0,67025.0,0.60377054]
[1729730869329,0.149195,67026.0,67001.0,0.07613609]
[1729730869330,0.298409,67022.0,67008.0,0.0995]
[1729730869551,0.149233,67009.0,67008.0,0.0995]
[1729730869785,0.149251,67001.0,67000.0,0.223909]
[1729730870004,0.149233,67009.0,67008.0,0.4477]
[1729730870919,0.149233,67009.0,67008.0,0.45983777]
[1729730871404,0.298444,67015.0,67008.0,0.46483777]
[1729730871631,0.14923,67011.0,67008.0,0.4648374]
[1729730871860,0.149231,67010.0,67009.0,0.0121374]